[Event "Titled Tuesday Blitz May 16 Early 2023"]
[White "Dobre, Claudiu-Cristian"]
[Black "Jakic, Ivan"]
[WhiteFideId "1211854"]
[BlackFideId "14504901"]
[WhiteElo "2207"]
[BlackElo "2370"]
[Result "0-1"]
[Round "02"]
[TimeControl "180+2"]
[Date "2023.05.16"]
[WhiteClock "0:00:00"]
[BlackClock "0:02:14"]

1. e4 {[%clk 0:03:00]}  c5 {[%clk 0:02:59]} 2. b3 {[%clk 0:03:00]}  d5 {[%clk 0:02:59]} 3. exd5 {[%clk 0:03:00]}  Qxd5 {[%clk 0:03:00]} 4. Nc3 {[%clk 0:03:00]}  Qe5+ {[%clk 0:02:59]} 5. Qe2 {[%clk 0:03:00]}  Qxe2+ {[%clk 0:02:59]} 6. Bxe2 {[%clk 0:03:00]}  Nc6 {[%clk 0:03:00]} 7. Bb2 {[%clk 0:02:51]}  Bf5 {[%clk 0:02:59]} 8. O-O-O {[%clk 0:02:11]}  O-O-O {[%clk 0:02:58]} 9. Bf3 {[%clk 0:01:28]}  Nd4 {[%clk 0:02:58]} 10. Be4 {[%clk 0:01:28]}  Be6 {[%clk 0:02:48]} 11. Nge2 {[%clk 0:01:11]}  Nf6 {[%clk 0:02:48]} 12. Bd3 {[%clk 0:01:07]}  Ng4 {[%clk 0:02:46]} 13. Rdf1 {[%clk 0:00:24]}  Ne5 {[%clk 0:02:44]} 14. Nf4 {[%clk 0:00:20]}  Nxd3+ {[%clk 0:02:41]} 15. Nxd3 {[%clk 0:00:18]}  b6 {[%clk 0:02:41]} 16. Re1 {[%clk 0:00:17]}  g6 {[%clk 0:02:41]} 17. Nb5 {[%clk 0:00:15]}  Bg7 {[%clk 0:02:37]} 18. Nxd4 {[%clk 0:00:15]}  Bxd4 {[%clk 0:02:36]} 19. Bxd4 {[%clk 0:00:12]}  Rxd4 {[%clk 0:02:37]} 20. Re3 {[%clk 0:00:11]}  Rhd8 {[%clk 0:02:36]} 21. g3 {[%clk 0:00:11]}  R8d7 {[%clk 0:02:34]} 22. Nf4 {[%clk 0:00:09]}  Rxd2 {[%clk 0:02:23]} 23. Nd3 {[%clk 0:00:09]}  R7xd3 {[%clk 0:02:18]} 24. Rxd3 {[%clk 0:00:08]}  Rxf2 {[%clk 0:02:18]} 25. Rd2 {[%clk 0:00:08]}  Rf3 {[%clk 0:02:18]} 26. Re1 {[%clk 0:00:07]}  h5 {[%clk 0:02:16]} 27. a4 {[%clk 0:00:06]}  Kc7 {[%clk 0:02:15]} 28. Ree2 {[%clk 0:00:07]}  Rf1+ {[%clk 0:02:14]} 29. Kb2 {[%clk 0:00:06]}  Rf5 {[%clk 0:02:15]} 30. Rf2 {[%clk 0:00:06]}  Rg5 {[%clk 0:02:15]} 31. Rf4 {[%clk 0:00:06]}  a6 {[%clk 0:02:15]} 32. c3 {[%clk 0:00:03]}  Re5 {[%clk 0:02:15]} 33. b4 {[%clk 0:00:00]}  cxb4 {[%clk 0:02:14]} 0-1


[Site "https://www.chess.com"]

[Event "Titled Tuesday Blitz May 16 Early 2023"]
[White "Ruge, Edison"]
[Black "Bethke, Richard"]
[WhiteFideId "4401000"]
[BlackFideId "12959243"]
[WhiteElo "2175"]
[BlackElo "2369"]
[Result "0-1"]
[Round "02"]
[TimeControl "180+2"]
[Date "2023.05.16"]
[WhiteClock "0:00:08"]
[BlackClock "0:01:42"]

1. e4 {[%clk 0:02:59]}  e5 {[%clk 0:02:58]} 2. Nf3 {[%clk 0:02:59]}  Nc6 {[%clk 0:02:57]} 3. Bb5 {[%clk 0:03:00]}  a6 {[%clk 0:02:55]} 4. Ba4 {[%clk 0:02:58]}  b5 {[%clk 0:02:54]} 5. Bb3 {[%clk 0:02:56]}  Bc5 {[%clk 0:02:54]} 6. Qe2 {[%clk 0:02:56]}  Nf6 {[%clk 0:02:51]} 7. a4 {[%clk 0:02:55]}  Rb8 {[%clk 0:02:47]} 8. axb5 {[%clk 0:02:55]}  axb5 {[%clk 0:02:48]} 9. Nc3 {[%clk 0:02:50]}  O-O {[%clk 0:02:38]} 10. Nxb5 {[%clk 0:02:49]}  Nxe4 {[%clk 0:02:33]} 11. Qxe4 {[%clk 0:02:45]}  Rxb5 {[%clk 0:02:30]} 12. O-O {[%clk 0:02:35]}  Rb4 {[%clk 0:02:13]} 13. Qd5 {[%clk 0:02:26]}  Bd6 {[%clk 0:02:08]} 14. d3 {[%clk 0:02:16]}  Bb7 {[%clk 0:02:07]} 15. c3 {[%clk 0:01:14]}  Nd4 {[%clk 0:02:02]} 16. cxb4 {[%clk 0:01:13]}  Bxd5 {[%clk 0:02:01]} 17. Bxd5 {[%clk 0:01:12]}  Nxf3+ {[%clk 0:01:59]} 18. Bxf3 {[%clk 0:01:12]}  Bxb4 {[%clk 0:01:59]} 19. Be3 {[%clk 0:01:07]}  c6 {[%clk 0:01:58]} 20. d4 {[%clk 0:01:06]}  exd4 {[%clk 0:01:56]} 21. Bxd4 {[%clk 0:01:06]}  d5 {[%clk 0:01:56]} 22. Rfc1 {[%clk 0:01:03]}  Qd6 {[%clk 0:01:55]} 23. Ra6 {[%clk 0:00:57]}  Rc8 {[%clk 0:01:44]} 24. Bg4 {[%clk 0:00:56]}  Qf4 {[%clk 0:01:44]} 25. Be3 {[%clk 0:00:16]}  Qxg4 {[%clk 0:01:43]} 26. Raxc6 {[%clk 0:00:08]}  Rxc6 {[%clk 0:01:42]} 0-1


[Site "https://www.chess.com"]

[Event "Titled Tuesday Blitz May 16 Early 2023"]
[White "Pham, Le Thao Nguyen"]
[Black "Thiel, Thomas"]
[WhiteFideId "12401226"]
[BlackFideId "4615964"]
[WhiteElo "2286"]
[BlackElo "2182"]
[Result "1/2-1/2"]
[Round "02"]
[TimeControl "180+2"]
[Date "2023.05.16"]
[WhiteClock "0:00:14"]
[BlackClock "0:01:34"]

1. e4 {[%clk 0:02:59]}  d5 {[%clk 0:02:58]} 2. exd5 {[%clk 0:02:59]}  Nf6 {[%clk 0:02:58]} 3. Bb5+ {[%clk 0:02:52]}  Nbd7 {[%clk 0:02:56]} 4. c4 {[%clk 0:02:36]}  a6 {[%clk 0:02:56]} 5. Bxd7+ {[%clk 0:02:36]}  Qxd7 {[%clk 0:02:57]} 6. Nc3 {[%clk 0:02:36]}  e6 {[%clk 0:02:54]} 7. dxe6 {[%clk 0:02:30]}  Qxe6+ {[%clk 0:02:54]} 8. Qe2 {[%clk 0:02:31]}  Bc5 {[%clk 0:02:45]} 9. Nf3 {[%clk 0:02:11]}  O-O {[%clk 0:02:42]} 10. Qxe6 {[%clk 0:02:08]}  Bxe6 {[%clk 0:02:43]} 11. d4 {[%clk 0:01:59]}  Bb4 {[%clk 0:02:39]} 12. d5 {[%clk 0:01:48]}  Bg4 {[%clk 0:02:37]} 13. Be3 {[%clk 0:01:42]}  b5 {[%clk 0:02:20]} 14. cxb5 {[%clk 0:01:02]}  Nxd5 {[%clk 0:02:17]} 15. O-O {[%clk 0:00:50]}  Bxc3 {[%clk 0:02:06]} 16. bxc3 {[%clk 0:00:48]}  Bxf3 {[%clk 0:02:06]} 17. gxf3 {[%clk 0:00:47]}  Nxc3 {[%clk 0:02:04]} 18. bxa6 {[%clk 0:00:43]}  Rxa6 {[%clk 0:02:05]} 19. a3 {[%clk 0:00:43]}  Rfa8 {[%clk 0:01:55]} 20. Bc5 {[%clk 0:00:29]}  Nb5 {[%clk 0:01:53]} 21. Rfb1 {[%clk 0:00:22]}  c6 {[%clk 0:01:53]} 22. Rb3 {[%clk 0:00:20]}  f6 {[%clk 0:01:51]} 23. Rc1 {[%clk 0:00:15]}  Nxa3 {[%clk 0:01:44]} 24. Kg2 {[%clk 0:00:15]}  Ra4 {[%clk 0:01:43]} 25. Bxa3 {[%clk 0:00:13]}  Rxa3 {[%clk 0:01:42]} 26. Rxa3 {[%clk 0:00:13]}  Rxa3 {[%clk 0:01:34]} 27. Rxc6 {[%clk 0:00:14]} 1/2-1/2


[Site "https://www.chess.com"]

[Event "Titled Tuesday Blitz May 16 Early 2023"]
[White "Lorenzo De La Riva, Lazaro"]
[Black "MANOJ_MISHRA123"]
[WhiteFideId "2268809"]
[WhiteElo "2294"]
[BlackElo "2162"]
[Result "1-0"]
[Round "02"]
[TimeControl "180+2"]
[Date "2023.05.16"]
[WhiteClock "0:00:06"]
[BlackClock "0:00:03"]

1. e4 {[%clk 0:02:59]}  Nf6 {[%clk 0:02:59]} 2. e5 {[%clk 0:02:59]}  Nd5 {[%clk 0:02:55]} 3. Nc3 {[%clk 0:02:59]}  Nxc3 {[%clk 0:02:54]} 4. dxc3 {[%clk 0:03:00]}  d6 {[%clk 0:02:54]} 5. Nf3 {[%clk 0:03:00]}  Bg4 {[%clk 0:02:52]} 6. Bc4 {[%clk 0:02:58]}  e6 {[%clk 0:02:44]} 7. Bf4 {[%clk 0:02:57]}  d5 {[%clk 0:02:42]} 8. Bd3 {[%clk 0:02:57]}  c5 {[%clk 0:02:40]} 9. b3 {[%clk 0:02:57]}  Nc6 {[%clk 0:02:30]} 10. h3 {[%clk 0:02:54]}  Bh5 {[%clk 0:02:27]} 11. g4 {[%clk 0:02:50]}  Bg6 {[%clk 0:02:26]} 12. Qe2 {[%clk 0:02:50]}  a6 {[%clk 0:02:24]} 13. a4 {[%clk 0:02:46]}  Be7 {[%clk 0:02:17]} 14. O-O {[%clk 0:02:37]}  O-O {[%clk 0:02:14]} 15. Bxg6 {[%clk 0:02:35]}  hxg6 {[%clk 0:02:11]} 16. Bg3 {[%clk 0:02:33]}  Qa5 {[%clk 0:02:10]} 17. Qd3 {[%clk 0:02:15]}  Rac8 {[%clk 0:02:02]} 18. h4 {[%clk 0:01:54]}  c4 {[%clk 0:01:51]} 19. Qd2 {[%clk 0:01:52]}  Rfd8 {[%clk 0:01:42]} 20. b4 {[%clk 0:01:49]}  Qb6 {[%clk 0:01:35]} 21. a5 {[%clk 0:01:48]}  Qa7 {[%clk 0:01:27]} 22. h5 {[%clk 0:01:30]}  d4 {[%clk 0:01:14]} 23. hxg6 {[%clk 0:01:30]}  fxg6 {[%clk 0:01:12]} 24. Kg2 {[%clk 0:00:58]}  dxc3 {[%clk 0:00:43]} 25. Qxc3 {[%clk 0:00:59]}  Nxb4 {[%clk 0:00:43]} 26. Rh1 {[%clk 0:00:53]}  Nd5 {[%clk 0:00:36]} 27. Qe1 {[%clk 0:00:46]}  Rf8 {[%clk 0:00:31]} 28. Qe4 {[%clk 0:00:45]}  Kf7 {[%clk 0:00:25]} 29. Rad1 {[%clk 0:00:32]}  Qc5 {[%clk 0:00:24]} 30. Nd4 {[%clk 0:00:27]}  Rh8 {[%clk 0:00:22]} 31. Nxe6 {[%clk 0:00:19]}  Kxe6 {[%clk 0:00:20]} 32. Qxg6+ {[%clk 0:00:18]}  Kd7 {[%clk 0:00:20]} 33. Qf5+ {[%clk 0:00:10]}  Kc6 {[%clk 0:00:19]} 34. Qe6+ {[%clk 0:00:10]}  Kc7 {[%clk 0:00:15]} 35. Rxh8 {[%clk 0:00:09]}  Rxh8 {[%clk 0:00:13]} 36. Rxd5 {[%clk 0:00:09]}  Qb4 {[%clk 0:00:12]} 37. Qd7+ {[%clk 0:00:07]}  Kb8 {[%clk 0:00:11]} 38. e6+ {[%clk 0:00:08]}  Ka8 {[%clk 0:00:11]} 39. Qc7 {[%clk 0:00:06]}  Re8 {[%clk 0:00:04]} 40. Rd7 {[%clk 0:00:06]}  Bc5 {[%clk 0:00:03]} 41. Rd8+ {[%clk 0:00:06]}  Rxd8 {[%clk 0:00:03]} 42. Qxd8+ {[%clk 0:00:07]}  Ka7 {[%clk 0:00:03]} 43. Qb8# {[%clk 0:00:06]} 1-0


[Site "https://www.chess.com"]

[Event "Titled Tuesday Blitz May 16 Early 2023"]
[White "Balla, Tamas-Kristof"]
[Black "Winkels, Marcel"]
[WhiteFideId "1208497"]
[BlackFideId "1003887"]
[WhiteElo "2334"]
[BlackElo "1900"]
[Result "1-0"]
[Round "02"]
[TimeControl "180+2"]
[Date "2023.05.16"]
[WhiteClock "0:01:51"]
[BlackClock "0:00:56"]

1. f4 {[%clk 0:02:51]}  c5 {[%clk 0:02:58]} 2. b3 {[%clk 0:02:49]}  Nc6 {[%clk 0:02:59]} 3. Bb2 {[%clk 0:02:50]}  Nf6 {[%clk 0:02:58]} 4. Nf3 {[%clk 0:02:50]}  g6 {[%clk 0:02:58]} 5. e3 {[%clk 0:02:51]}  Bg7 {[%clk 0:02:57]} 6. Bb5 {[%clk 0:02:52]}  O-O {[%clk 0:02:50]} 7. Bxc6 {[%clk 0:02:50]}  bxc6 {[%clk 0:02:50]} 8. O-O {[%clk 0:02:49]}  d6 {[%clk 0:02:47]} 9. Qe2 {[%clk 0:02:47]}  Bg4 {[%clk 0:02:46]} 10. d3 {[%clk 0:02:45]}  a5 {[%clk 0:02:36]} 11. a4 {[%clk 0:02:44]}  Nd5 {[%clk 0:02:28]} 12. Bxg7 {[%clk 0:02:40]}  Kxg7 {[%clk 0:02:28]} 13. Nbd2 {[%clk 0:02:38]}  Nb4 {[%clk 0:02:13]} 14. Nc4 {[%clk 0:02:24]}  Bxf3 {[%clk 0:02:01]} 15. Rxf3 {[%clk 0:02:21]}  d5 {[%clk 0:02:01]} 16. Ne5 {[%clk 0:02:19]}  f6 {[%clk 0:01:59]} 17. Ng4 {[%clk 0:02:19]}  h5 {[%clk 0:01:54]} 18. Nf2 {[%clk 0:02:18]}  e5 {[%clk 0:01:47]} 19. c3 {[%clk 0:02:11]}  Na6 {[%clk 0:01:43]} 20. Rg3 {[%clk 0:02:11]}  Kh6 {[%clk 0:01:38]} 21. f5 {[%clk 0:01:58]}  g5 {[%clk 0:00:56]} 22. Qxh5+ {[%clk 0:01:51]} 1-0


[Site "https://www.chess.com"]

[Event "Titled Tuesday Blitz May 16 Early 2023"]
[White "Ciuffoletti, Paolo"]
[Black "Hamley, Ryan"]
[WhiteFideId "807630"]
[BlackFideId "30959497"]
[WhiteElo "2143"]
[BlackElo "2478"]
[Result "0-1"]
[Round "02"]
[TimeControl "180+2"]
[Date "2023.05.16"]
[WhiteClock "0:00:17"]
[BlackClock "0:01:58"]

1. e4 {[%clk 0:03:00]}  g6 {[%clk 0:02:59]} 2. d4 {[%clk 0:03:00]}  Bg7 {[%clk 0:03:00]} 3. Nc3 {[%clk 0:02:59]}  c6 {[%clk 0:02:59]} 4. f4 {[%clk 0:02:53]}  d5 {[%clk 0:02:58]} 5. e5 {[%clk 0:02:53]}  h5 {[%clk 0:02:57]} 6. Nf3 {[%clk 0:02:50]}  Bg4 {[%clk 0:02:53]} 7. Bd3 {[%clk 0:02:40]}  e6 {[%clk 0:02:53]} 8. Be3 {[%clk 0:02:39]}  Ne7 {[%clk 0:02:53]} 9. h3 {[%clk 0:02:20]}  Bxf3 {[%clk 0:02:52]} 10. Qxf3 {[%clk 0:02:21]}  h4 {[%clk 0:02:53]} 11. Ne2 {[%clk 0:02:13]}  a6 {[%clk 0:02:44]} 12. c3 {[%clk 0:02:07]}  Nd7 {[%clk 0:02:44]} 13. g4 {[%clk 0:01:46]}  hxg3 {[%clk 0:02:43]} 14. Nxg3 {[%clk 0:01:46]}  Nf5 {[%clk 0:02:28]} 15. Nxf5 {[%clk 0:01:43]}  gxf5 {[%clk 0:02:28]} 16. O-O-O {[%clk 0:01:43]}  Qc7 {[%clk 0:02:23]} 17. Rdg1 {[%clk 0:01:41]}  Bh6 {[%clk 0:02:23]} 18. Rg2 {[%clk 0:01:08]}  O-O-O {[%clk 0:02:20]} 19. Kb1 {[%clk 0:01:06]}  c5 {[%clk 0:02:18]} 20. Rc1 {[%clk 0:00:55]}  c4 {[%clk 0:02:15]} 21. Bf1 {[%clk 0:00:51]}  Nf8 {[%clk 0:02:15]} 22. b3 {[%clk 0:00:50]}  b5 {[%clk 0:02:13]} 23. Rb2 {[%clk 0:00:49]}  Ng6 {[%clk 0:02:12]} 24. bxc4 {[%clk 0:00:48]}  bxc4 {[%clk 0:02:13]} 25. Bxc4 {[%clk 0:00:46]}  Qxc4 {[%clk 0:02:09]} 26. Rb4 {[%clk 0:00:40]}  Qd3+ {[%clk 0:02:08]} 27. Ka1 {[%clk 0:00:36]}  Bxf4 {[%clk 0:02:07]} 28. c4 {[%clk 0:00:21]}  Qxe3 {[%clk 0:01:58]} 29. cxd5+ {[%clk 0:00:17]}  Qxc1+ {[%clk 0:01:58]} 0-1


[Site "https://www.chess.com"]

[Event "Titled Tuesday Blitz May 16 Early 2023"]
[White "Turzo, Attila"]
[Black "KSho99"]
[WhiteFideId "704954"]
[WhiteElo "2474"]
[BlackElo "2143"]
[Result "1-0"]
[Round "02"]
[TimeControl "180+2"]
[Date "2023.05.16"]
[WhiteClock "0:00:07"]
[BlackClock "0:00:00"]

1. d4 {[%clk 0:02:55]}  d5 {[%clk 0:02:58]} 2. c4 {[%clk 0:02:54]}  e6 {[%clk 0:02:57]} 3. Nf3 {[%clk 0:02:54]}  a6 {[%clk 0:02:57]} 4. g3 {[%clk 0:02:50]}  dxc4 {[%clk 0:02:56]} 5. a4 {[%clk 0:02:49]}  Nc6 {[%clk 0:02:52]} 6. Bg2 {[%clk 0:02:49]}  Rb8 {[%clk 0:02:34]} 7. O-O {[%clk 0:02:42]}  Na5 {[%clk 0:02:26]} 8. Ne5 {[%clk 0:02:15]}  f6 {[%clk 0:02:16]} 9. Nf3 {[%clk 0:02:09]}  c6 {[%clk 0:01:50]} 10. Bf4 {[%clk 0:02:05]}  Bd6 {[%clk 0:01:46]} 11. Nbd2 {[%clk 0:02:04]}  Bxf4 {[%clk 0:01:36]} 12. gxf4 {[%clk 0:02:05]}  Qd6 {[%clk 0:01:34]} 13. e3 {[%clk 0:02:00]}  Qb4 {[%clk 0:01:24]} 14. Qc2 {[%clk 0:01:52]}  Ne7 {[%clk 0:01:17]} 15. Rfb1 {[%clk 0:01:20]}  b5 {[%clk 0:01:17]} 16. b3 {[%clk 0:01:07]}  cxb3 {[%clk 0:00:52]} 17. Nxb3 {[%clk 0:01:04]}  Nxb3 {[%clk 0:00:45]} 18. Rxb3 {[%clk 0:01:02]}  Qd6 {[%clk 0:00:44]} 19. Nd2 {[%clk 0:00:48]}  O-O {[%clk 0:00:30]} 20. Ne4 {[%clk 0:00:48]}  Qd8 {[%clk 0:00:22]} 21. Nc5 {[%clk 0:00:43]}  Nd5 {[%clk 0:00:19]} 22. Be4 {[%clk 0:00:33]}  f5 {[%clk 0:00:18]} 23. Bf3 {[%clk 0:00:29]}  Qh4 {[%clk 0:00:17]} 24. a5 {[%clk 0:00:20]}  Rf6 {[%clk 0:00:17]} 25. Kf1 {[%clk 0:00:14]}  Qxh2 {[%clk 0:00:17]} 26. Ke2 {[%clk 0:00:13]}  Rg6 {[%clk 0:00:12]} 27. Rh1 {[%clk 0:00:12]}  Nxf4+ {[%clk 0:00:08]} 28. exf4 {[%clk 0:00:08]}  Qxf4 {[%clk 0:00:08]} 29. Qd2 {[%clk 0:00:07]}  Qd6 {[%clk 0:00:05]} 30. Qe3 {[%clk 0:00:06]}  f4 {[%clk 0:00:04]} 31. Qe5 {[%clk 0:00:06]}  Qxe5+ {[%clk 0:00:03]} 32. dxe5 {[%clk 0:00:07]}  Rg5 {[%clk 0:00:03]} 33. Rh5 {[%clk 0:00:08]}  Rxh5 {[%clk 0:00:03]} 34. Bxh5 {[%clk 0:00:08]}  g6 {[%clk 0:00:02]} 35. Bf3 {[%clk 0:00:09]}  Kf7 {[%clk 0:00:00]} 36. Bxc6 {[%clk 0:00:07]} 1-0


[Site "https://www.chess.com"]

[Event "Titled Tuesday Blitz May 16 Early 2023"]
[White "Lakshmi C"]
[Black "Tanmay Jain"]
[WhiteFideId "25035347"]
[BlackFideId "45015481"]
[WhiteElo "1942"]
[BlackElo "2032"]
[Result "0-1"]
[Round "02"]
[TimeControl "180+2"]
[Date "2023.05.16"]
[WhiteClock "0:01:38"]
[BlackClock "0:01:40"]

1. g3 {[%clk 0:02:46]}  d5 {[%clk 0:02:57]} 2. Bg2 {[%clk 0:02:43]}  Nf6 {[%clk 0:02:57]} 3. f4 {[%clk 0:02:43]}  c5 {[%clk 0:02:55]} 4. Nf3 {[%clk 0:02:43]}  Nc6 {[%clk 0:02:55]} 5. O-O {[%clk 0:02:42]}  e6 {[%clk 0:02:54]} 6. e3 {[%clk 0:02:43]}  d4 {[%clk 0:02:48]} 7. Qe2 {[%clk 0:02:41]}  dxe3 {[%clk 0:02:42]} 8. dxe3 {[%clk 0:02:40]}  Be7 {[%clk 0:02:43]} 9. e4 {[%clk 0:02:33]}  O-O {[%clk 0:02:43]} 10. c3 {[%clk 0:02:32]}  Qc7 {[%clk 0:02:39]} 11. Kh1 {[%clk 0:02:31]}  b6 {[%clk 0:02:39]} 12. e5 {[%clk 0:02:05]}  Nd7 {[%clk 0:02:23]} 13. Nbd2 {[%clk 0:01:55]}  Bb7 {[%clk 0:02:17]} 14. Ne4 {[%clk 0:01:54]}  Na5 {[%clk 0:01:58]} 15. b4 {[%clk 0:01:45]}  cxb4 {[%clk 0:01:50]} 16. c4 {[%clk 0:01:38]}  Ba6 {[%clk 0:01:40]} 0-1


[Site "https://www.chess.com"]

[Event "Titled Tuesday Blitz May 16 Early 2023"]
[White "Srebrnic, Ana"]
[Black "Martic, Ivan"]
[WhiteFideId "14603314"]
[BlackFideId "929301"]
[WhiteElo "2181"]
[BlackElo "2360"]
[Result "0-1"]
[Round "02"]
[TimeControl "180+2"]
[Date "2023.05.16"]
[WhiteClock "0:00:19"]
[BlackClock "0:01:41"]

1. e4 {[%clk 0:02:54]}  g6 {[%clk 0:03:00]} 2. d4 {[%clk 0:02:53]}  Bg7 {[%clk 0:03:00]} 3. Nc3 {[%clk 0:02:52]}  d6 {[%clk 0:03:00]} 4. Bf4 {[%clk 0:02:52]}  a6 {[%clk 0:02:59]} 5. Qd2 {[%clk 0:02:52]}  b5 {[%clk 0:02:59]} 6. Nf3 {[%clk 0:02:47]}  Bb7 {[%clk 0:03:00]} 7. Bd3 {[%clk 0:02:45]}  Nd7 {[%clk 0:02:59]} 8. O-O {[%clk 0:02:41]}  c5 {[%clk 0:02:59]} 9. dxc5 {[%clk 0:02:38]}  Nxc5 {[%clk 0:02:59]} 10. Rad1 {[%clk 0:02:29]}  Nf6 {[%clk 0:02:59]} 11. Rfe1 {[%clk 0:02:27]}  O-O {[%clk 0:02:57]} 12. Bh6 {[%clk 0:02:26]}  b4 {[%clk 0:02:50]} 13. Bxg7 {[%clk 0:02:24]}  Kxg7 {[%clk 0:02:40]} 14. Nb1 {[%clk 0:02:07]}  a5 {[%clk 0:02:40]} 15. c3 {[%clk 0:02:05]}  Nxd3 {[%clk 0:02:34]} 16. Qxd3 {[%clk 0:02:04]}  Qb6 {[%clk 0:02:25]} 17. Nbd2 {[%clk 0:01:59]}  bxc3 {[%clk 0:02:21]} 18. Qxc3 {[%clk 0:01:58]}  Rfc8 {[%clk 0:02:21]} 19. Qe3 {[%clk 0:01:40]}  Qxe3 {[%clk 0:02:19]} 20. Rxe3 {[%clk 0:01:40]}  Rc2 {[%clk 0:02:19]} 21. Rb3 {[%clk 0:01:10]}  Bxe4 {[%clk 0:02:17]} 22. Nxe4 {[%clk 0:01:10]}  Nxe4 {[%clk 0:02:18]} 23. Rb7 {[%clk 0:01:08]}  Kf8 {[%clk 0:02:12]} 24. Nd4 {[%clk 0:00:49]}  Rxf2 {[%clk 0:01:53]} 25. Nc6 {[%clk 0:00:48]}  Rc8 {[%clk 0:01:47]} 26. Rxe7 {[%clk 0:00:27]}  Rxc6 {[%clk 0:01:44]} 27. Rxe4 {[%clk 0:00:26]}  Rcc2 {[%clk 0:01:45]} 28. Rxd6 {[%clk 0:00:21]}  Rxg2+ {[%clk 0:01:44]} 29. Kf1 {[%clk 0:00:21]}  Rxh2 {[%clk 0:01:43]} 30. Rd8+ {[%clk 0:00:19]}  Kg7 {[%clk 0:01:42]} 31. Ra8 {[%clk 0:00:19]}  Rh1# {[%clk 0:01:41]} 0-1


[Site "https://www.chess.com"]

[Event "Titled Tuesday Blitz May 16 Early 2023"]
[White "Womacka, Mathias"]
[Black "Brown, Raehanna"]
[WhiteFideId "4611390"]
[BlackFideId "7402740"]
[WhiteElo "2377"]
[BlackElo "1655"]
[Result "0-1"]
[Round "02"]
[TimeControl "180+2"]
[Date "2023.05.16"]
[WhiteClock "0:00:00"]
[BlackClock "0:00:03"]

1. e4 {[%clk 0:03:00]}  c5 {[%clk 0:02:54]} 2. Nf3 {[%clk 0:03:00]}  Nc6 {[%clk 0:02:51]} 3. d4 {[%clk 0:03:00]}  cxd4 {[%clk 0:02:52]} 4. Nxd4 {[%clk 0:03:00]}  Nf6 {[%clk 0:02:41]} 5. Nc3 {[%clk 0:03:00]}  g6 {[%clk 0:02:25]} 6. Nxc6 {[%clk 0:02:58]}  bxc6 {[%clk 0:02:18]} 7. e5 {[%clk 0:02:59]}  Nh5 {[%clk 0:02:08]} 8. Bc4 {[%clk 0:02:49]}  Ng7 {[%clk 0:02:05]} 9. Qf3 {[%clk 0:02:39]}  Ne6 {[%clk 0:01:59]} 10. O-O {[%clk 0:01:49]}  Bg7 {[%clk 0:01:58]} 11. Re1 {[%clk 0:01:49]}  O-O {[%clk 0:01:56]} 12. Qe4 {[%clk 0:01:37]}  Bb7 {[%clk 0:01:39]} 13. Be3 {[%clk 0:01:35]}  d5 {[%clk 0:01:36]} 14. exd6 {[%clk 0:01:34]}  exd6 {[%clk 0:01:32]} 15. Bxe6 {[%clk 0:01:32]}  d5 {[%clk 0:01:22]} 16. Qb4 {[%clk 0:01:20]}  fxe6 {[%clk 0:01:16]} 17. Qxb7 {[%clk 0:01:19]}  d4 {[%clk 0:01:16]} 18. Qxc6 {[%clk 0:01:18]}  dxe3 {[%clk 0:01:15]} 19. Qxe6+ {[%clk 0:01:16]}  Kh8 {[%clk 0:00:59]} 20. Rxe3 {[%clk 0:01:15]}  Rb8 {[%clk 0:00:44]} 21. Rd1 {[%clk 0:01:08]}  Qa5 {[%clk 0:00:41]} 22. Ne4 {[%clk 0:00:31]}  Rxb2 {[%clk 0:00:34]} 23. Nd6 {[%clk 0:00:22]}  Qc7 {[%clk 0:00:20]} 24. h4 {[%clk 0:00:15]}  Rxc2 {[%clk 0:00:17]} 25. Rf1 {[%clk 0:00:12]}  Bd4 {[%clk 0:00:12]} 26. Rf3 {[%clk 0:00:07]}  Rxf3 {[%clk 0:00:10]} 27. gxf3 {[%clk 0:00:08]}  Bg7 {[%clk 0:00:08]} 28. Nf7+ {[%clk 0:00:07]}  Kg8 {[%clk 0:00:07]} 29. Nh6+ {[%clk 0:00:06]}  Kf8 {[%clk 0:00:07]} 30. Qg8+ {[%clk 0:00:06]}  Ke7 {[%clk 0:00:05]} 31. Qxg7+ {[%clk 0:00:06]}  Kd6 {[%clk 0:00:06]} 32. Qxc7+ {[%clk 0:00:06]}  Kxc7 {[%clk 0:00:07]} 33. Ng4 {[%clk 0:00:06]}  Rxa2 {[%clk 0:00:06]} 34. Nf6 {[%clk 0:00:07]}  h6 {[%clk 0:00:06]} 35. Re1 {[%clk 0:00:05]}  Ra3 {[%clk 0:00:05]} 36. Kg2 {[%clk 0:00:05]}  Kd6 {[%clk 0:00:05]} 37. Ne4+ {[%clk 0:00:04]}  Ke5 {[%clk 0:00:04]} 38. Rc1 {[%clk 0:00:04]}  Kf4 {[%clk 0:00:03]} 39. Rc7 {[%clk 0:00:02]}  a5 {[%clk 0:00:01]} 40. Rf7+ {[%clk 0:00:03]}  Ke5 {[%clk 0:00:01]} 41. Rg7 {[%clk 0:00:02]}  Kd4 {[%clk 0:00:02]} 42. Rxg6 {[%clk 0:00:02]}  a4 {[%clk 0:00:03]} 43. Ra6 {[%clk 0:00:02]}  Ra1 {[%clk 0:00:04]} 44. Kg3 {[%clk 0:00:03]}  a3 {[%clk 0:00:04]} 45. Kf4 {[%clk 0:00:03]}  a2 {[%clk 0:00:04]} 46. Kf5 {[%clk 0:00:02]}  Kc4 {[%clk 0:00:03]} 47. h5 {[%clk 0:00:02]}  Kb3 {[%clk 0:00:04]} 48. Nc5+ {[%clk 0:00:00]}  Kc4 {[%clk 0:00:03]} 0-1


[Site "https://www.chess.com"]